bitfinex/quotes_ETHUSD_20250214
["timestamp","ask_amount","ask_price","bid_price","bid_amount"]
[1739508168145,4.71101,2705.2,2704.7,3.82570714]
[1739508168779,4.71101,2705.2,2704.7,0.12845714]
[1739508168959,5.53256135,2705.2,2704.7,0.12845714]
[1739508175076,9.22926135,2705.2,2704.7,0.12845714]
[1739508176082,5.53256135,2705.2,2704.7,0.12845714]
[1739508176684,9.22923135,2705.2,2704.7,0.12845714]
[1739508176853,5.53256135,2705.2,2704.7,0.12845714]
[1739508178074,1.83595135,2705.2,2704.7,0.12845714]
[1739508178381,0.2496,2705.2,2704.7,3.82562714]
[1739508179981,3.94618,2705.2,2704.7,3.82562714]
[1739508181381,3.94618,2705.2,2704.7,0.12845714]
[1739508182060,3.94618,2705.2,2704.6,4.03751]
[1739508182265,3.94618,2705.2,2704.8,0.1284277]
[1739508182584,4.97271874,2705.2,2704.9,0.12849436]
[1739508182793,4.97271874,2705.2,2704.6,4.0375]
[1739508182956,3.94618,2705.2,2704.6,4.0375]
[1739508183166,3.94618,2705.2,2704.7,0.12854045]
[1739508184590,3.94618,2705.2,2704.7,3.82578045]
[1739508185087,3.94618,2705.2,2704.7,3.82580045]
[1739508186888,0.2496,2705.2,2704.7,3.82580045]
[1739508188692,3.94618,2705.2,2704.7,0.12854045]
[1739508188995,4.60308173,2705.2,2704.7,0.12854045]
[1739508192184,0.90650173,2705.2,2704.7,0.12854045]
[1739508192356,0.90650173,2705.2,2704.7,3.82570045]
[1739508193469,4.60310173,2705.2,2704.7,0.12854045]
[1739508194272,4.60310173,2705.2,2704.7,3.82576045]
[1739508194599,0.2496,2705.2,2704.8,0.3402]
[1739508194762,0.2496,2705.2,2704.9,0.12850076]
[1739508195198,0.2496,2705.2,2705.0,3.69677]
[1739508195361,0.2496,2705.2,2705.1,3.82517468]
[1739508196114,0.2496,2705.2,2705.1,0.12845468]
[1739508196474,0.2496,2705.2,2705.0,3.69685]
[1739508196657,0.2496,2705.2,2705.1,0.12845468]
[1739508196875,0.2496,2705.2,2705.1,3.82517468]
[1739508198785,0.2496,2705.2,2705.1,4.16537468]
[1739508214406,0.2496,2705.2,2705.1,7.16537468]
[1739508214810,0.2496,2705.2,2705.1,8.70301203]
[1739508215227,0.2496,2705.2,2705.1,8.71801203]
[1739508217815,0.2496,2705.2,2705.1,3.82517468]
[1739508228978,0.2496,2705.2,2705.1,0.12845468]
[1739508229379,0.2496,2705.2,2705.1,3.82517468]
[1739508231352,0.2496,2705.2,2705.1,0.12845468]
[1739508232638,0.2496,2705.2,2705.1,3.82517468]
[1739508236224,0.2496,2705.2,2705.1,0.12845468]
[1739508236424,1.0306,2705.2,2705.1,0.12845468]
[1739508236637,1.0306,2705.2,2704.9,3.69696]
[1739508236843,1.28742374,2705.2,2705.0,0.11442634]
[1739508237740,1.28742374,2705.2,2705.0,3.81126634]
[1739508238089,1.28742374,2705.2,2705.0,0.11442634]
[1739508238488,1.28742374,2705.2,2704.9,3.69697]
[1739508238718,1.28742374,2705.2,2705.1,0.11034716]
[1739508238924,1.28742374,2705.2,2705.0,0.11037019]
[1739508239240,1.82014346,2705.1,2704.8,3.69702]
[1739508239641,1.53763735,2705.1,2704.9,3.69692]
[1739508242956,0.2496,2705.2,2705.1,3.69672]
[1739508245098,0.2496,2705.2,2705.1,3.80042262]
[1739508253805,0.2496,2705.2,2705.1,4.14062262]
[1739508262308,0.2496,2705.2,2705.1,7.14062262]
[1739508266750,1e-05,2705.2,2705.1,8.7152215]
[1739508266893,1e-05,2705.2,2705.1,8.67825997]
[1739508267911,1e-05,2705.2,2705.1,8.69325997]
[1739508274157,1e-05,2705.2,2705.1,8.67825997]
[1739508275369,1e-05,2705.2,2705.1,9.24325997]
[1739508275677,1e-05,2705.2,2705.1,9.34325997]
[1739508279944,1e-05,2705.2,2705.1,23.34325997]
[1739508286722,1e-05,2705.2,2705.1,23.59205997]
[1739508299809,1.53763735,2706.7,2705.6,0.7903]
[1739508300007,1.80563735,2707.1,2707.0,3.69412]
[1739508300240,2.10674609,2707.1,2707.0,3.69412]
[1739508300559,0.56910874,2707.1,2707.0,3.79382374]
[1739508301328,2.10674609,2707.1,2707.0,3.79382374]
[1739508302951,2.86924609,2707.1,2707.0,3.79382374]
[1739508308070,4.67135004,2707.2,2707.1,3.69398]
[1739508308288,4.67135004,2707.2,2707.1,3.79299062]
[1739508310945,0.7859,2707.2,2707.1,3.79299062]
[1739508318677,0.7859,2707.2,2707.1,0.09901062]
[1739508319278,1.01825374,2707.2,2707.1,0.09901062]
[1739508319599,1.01825374,2707.2,2706.6,3.6946]
[1739508319600,0.7882,2707.1,2706.6,3.6946]
[1739508319797,1.53763735,2706.9,2706.6,7.38918]
[1739508319997,0.7882,2706.8,2706.6,7.38918]
[1739508320333,0.7882,2706.8,2706.7,0.09849652]
[1739508322348,1.05738374,2706.8,2706.7,0.09849652]
[1739508322845,0.8248,2706.7,2706.4,3.69483]
[1739508323038,0.8248,2706.7,2706.2,3.69517]
[1739508323039,0.8248,2706.5,2706.2,3.69517]
[1739508323242,0.8248,2706.5,2706.3,3.69506]
[1739508323542,0.23258374,2706.8,2706.0,3.69536]
[1739508323543,0.8248,2706.3,2706.0,3.69536]
[1739508323729,0.8248,2706.3,2706.1,3.69533]
[1739508324139,0.8248,2706.3,2706.0,3.69536]
[1739508324347,0.8248,2706.3,2706.1,3.69522]
[1739508325506,0.8248,2706.3,2706.0,3.69536]
[1739508325843,0.8248,2706.3,2705.6,3.0]
[1739508326142,0.8248,2706.3,2706.2,3.69521]
[1739508334955,0.7879,2706.5,2706.3,3.69497]
[1739508335379,0.7879,2706.5,2706.4,0.14831963]
[1739508336441,0.7879,2706.5,2706.3,3.69507]
[1739508336642,0.7879,2706.5,2706.4,0.1483205]
[1739508337656,0.7879,2706.5,2706.1,3.69524]
[1739508337944,0.7777,2706.7,2706.5,3.69472]
[1739508338296,0.7777,2706.7,2706.4,3.69494]
[1739508338491,0.7777,2706.7,2706.6,0.14860776]
[1739508338713,0.7777,2706.7,2706.6,3.69467]
[1739508338847,3.69349,2707.5,2706.9,3.69417]
[1739508338848,0.8164,2707.0,2706.9,3.69417]
[1739508339199,1.0844,2707.4,2707.0,3.6941]
[1739508339629,0.8164,2707.4,2707.2,3.69384]
[1739508340111,0.8164,2707.4,2707.3,0.14843171]
[1739508340483,0.8164,2707.4,2707.0,3.69404]
[1739508340679,0.8164,2707.4,2707.1,3.69397]
[1739508340884,0.8164,2707.4,2707.2,3.69383]
[1739508341189,0.8164,2707.4,2707.3,0.14859093]
[1739508341718,0.8164,2707.4,2707.2,3.69383]
[1739508342011,0.8164,2707.4,2707.3,0.14859093]
[1739508342177,0.8164,2707.4,2707.2,3.69383]
[1739508342386,0.8164,2707.4,2707.3,0.14859093]
[1739508342788,0.8164,2707.4,2707.2,3.69383]
[1739508343090,0.8164,2707.4,2707.3,0.14859093]
[1739508343498,1.61102319,2707.4,2707.0,3.69407]
[1739508343704,0.8164,2707.4,2707.0,3.69407]
[1739508344090,0.8164,2707.4,2707.1,0.14864122]
[1739508344972,0.8164,2707.4,2707.1,3.84262122]
[1739508345167,0.8164,2707.4,2707.1,0.14864122]
[1739508347075,0.8164,2707.4,2707.1,3.84254122]
[1739508349574,1.61102319,2707.4,2707.1,0.14864122]
[1739508349778,3.16852188,2707.2,2707.1,0.14864122]
[1739508350013,3.16852188,2707.2,2706.7,3.69445]
[1739508350223,0.7659,2707.1,2706.7,3.69445]
[1739508350607,0.7659,2707.1,2706.5,3.6947]
[1739508350841,0.8276,2707.0,2706.4,3.69491]
[1739508352622,4.52172,2707.0,2706.4,3.69491]
[1739508353496,4.52172,2707.0,2706.4,7.38975]
[1739508353820,4.52172,2707.0,2706.0,3.0]
[1739508354518,4.52172,2707.0,2706.4,3.69487]
[1739508354751,0.7926,2706.9,2706.4,3.69487]
[1739508355130,3.96112188,2706.9,2706.4,3.69487]
[1739508355816,0.7926,2706.9,2706.6,3.69465]
[1739508356048,0.7926,2706.9,2706.6,7.38924]
[1739508356249,0.7926,2706.9,2706.6,3.69459]
[1739508358761,0.7926,2706.9,2706.4,7.38974]
[1739508359058,0.7926,2706.9,2706.2,3.69511]
[1739508359059,0.7673,2706.7,2706.2,3.69511]
[1739508359270,0.7673,2706.7,2706.0,3.69544]
[1739508359427,0.7673,2706.5,2706.0,3.69538]
[1739508359636,0.76305719,2706.4,2706.0,3.69538]
[1739508359820,0.7673,2706.5,2706.0,3.69538]
[1739508360324,4.46448,2706.4,2705.8,3.69574]
[1739508360556,0.7695,2706.3,2705.8,3.69574]
[1739508360759,0.7695,2706.3,2705.6,3.69601]
[1739508360967,0.7695,2706.3,2705.8,3.69575]
[1739508361115,1.215948,2706.3,2705.8,3.69575]
[1739508361322,4.911028,2706.3,2705.7,3.69586]
[1739508361547,0.7788,2706.2,2705.7,3.69586]
[1739508362170,0.7788,2706.2,2705.8,3.69572]
[1739508363276,0.7788,2706.2,2705.6,3.69601]
[1739508363277,0.8093,2706.1,2705.6,3.69601]
[1739508363881,3.69555,2706.0,2705.4,3.69627]
[1739508364179,0.8093,2705.9,2705.4,3.69621]
[1739508365296,0.8093,2705.9,2705.6,3.69593]
[1739508365576,0.8093,2705.9,2705.5,0.14927956]
[1739508365781,0.8093,2705.9,2705.7,0.14922921]
[1739508366084,0.8093,2705.9,2705.4,3.69621]
[1739508366287,0.8093,2705.9,2705.8,0.14920404]
[1739508366435,1.259779,2705.9,2705.4,3.69621]
[1739508366635,0.8093,2705.9,2705.8,0.14920404]
[1739508366835,0.8093,2705.9,2705.6,3.69596]
[1739508367032,0.8093,2705.9,2705.8,0.14920404]
[1739508367336,0.8093,2705.9,2705.7,0.14922921]
[1739508367582,0.8093,2705.9,2705.7,3.69588]
[1739508367769,0.8093,2705.9,2705.8,0.14975834]
[1739508368281,0.8093,2705.9,2705.8,3.84551834]
[1739508369331,0.7612,2706.1,2705.8,3.84551834]
[1739508369946,4.24494,2706.4,2706.0,3.69549]
[1739508369947,0.7783,2706.4,2706.0,3.69549]
[1739508370150,0.268,2706.3,2705.8,3.84551834]
[1739508370385,0.268,2706.3,2706.1,0.14968283]
[1739508370560,1.042124,2706.3,2705.8,3.69576]
[1739508370767,0.268,2706.3,2706.2,0.14965767]
[1739508371278,0.268,2706.3,2705.8,3.69566]
[1739508371479,0.268,2706.3,2706.2,0.14965767]
[1739508371692,0.7783,2706.4,2706.2,3.84484767]
[1739508371988,0.7783,2706.4,2706.2,3.69519]
[1739508372157,0.7783,2706.4,2706.3,0.14963251]
[1739508372555,0.7783,2706.4,2706.1,3.69531]
[1739508372786,0.7783,2706.4,2706.3,0.14963251]
[1739508373451,1.079,2706.6,2706.4,3.69493]
[1739508373602,0.811,2706.6,2706.5,3.6948]
[1739508373776,0.811,2706.6,2706.5,3.84438219]
[1739508373980,0.811,2706.6,2706.5,0.14958219]
[1739508374583,0.7627,2707.0,2706.5,3.84428219]
[1739508374777,0.7627,2707.0,2706.7,3.69447]
[1739508375017,0.7627,2707.0,2706.7,3.69446]
[1739508375190,0.7627,2707.0,2706.8,0.14911166]
[1739508375721,0.7627,2707.0,2706.9,0.14899094]
[1739508376213,0.7627,2707.0,2706.9,0.14885717]
[1739508377875,0.7627,2707.0,2706.7,3.69453]
[1739508378079,0.7627,2707.0,2706.9,0.14885717]
[1739508378379,0.7627,2707.0,2706.8,0.14888232]
[1739508378582,0.7627,2707.0,2706.9,0.14885717]
[1739508378815,0.7627,2707.0,2706.7,3.69453]
[1739508379020,0.7627,2707.0,2706.9,0.14877436]
[1739508379318,0.7627,2707.0,2706.7,7.38884]
[1739508379819,0.7627,2707.0,2706.8,0.14879952]
[1739508380322,0.7627,2707.0,2706.7,3.6944]
[1739508380478,0.7627,2707.0,2706.9,0.14877436]
[1739508380678,0.7627,2707.0,2706.8,0.14879952]
[1739508380877,0.7627,2707.0,2706.7,3.6944]
[1739508381119,0.7627,2707.0,2706.9,0.14877436]
[1739508381327,0.7627,2707.0,2706.8,0.14879952]
[1739508381820,0.7627,2707.0,2706.9,0.14877436]
[1739508382124,0.7627,2707.0,2706.7,3.6944]
[1739508382273,0.7627,2707.0,2706.9,0.14877436]
[1739508382478,0.7627,2707.0,2706.7,3.6944]
[1739508382819,0.7627,2707.0,2706.9,0.14877436]
[1739508383322,0.7627,2707.0,2706.7,7.3888]
[1739508383615,0.7627,2707.0,2706.9,0.14877436]
[1739508383818,0.7627,2707.0,2706.9,3.69426]
[1739508384019,0.268,2707.3,2706.8,3.84318952]
[1739508384225,0.268,2707.3,2706.9,0.14877436]
[1739508384524,0.8162,2707.2,2706.9,0.14877436]
[1739508384875,0.8162,2707.2,2706.6,3.6946]
[1739508385124,4.51008,2707.2,2707.0,0.14866005]
[1739508385324,4.51008,2707.2,2706.6,3.6946]
[1739508385498,4.51008,2707.2,2707.1,0.1486349]
[1739508385696,3.694,2707.1,2706.6,3.6946]
[1739508386906,1.70549222,2707.2,2706.6,3.6946]
[1739508387115,5.39937222,2707.2,2706.6,3.6946]
[1739508388473,1.70549222,2707.2,2706.6,3.6946]
[1739508388599,0.8162,2707.2,2706.6,3.69456]
[1739508388800,4.51006,2707.2,2706.6,3.69456]
[1739508389025,0.8162,2707.2,2706.6,3.69456]
[1739508389325,0.8162,2707.2,2706.7,3.69453]
[1739508389498,4.51005,2707.2,2706.6,3.69456]
[1739508389895,0.8162,2707.2,2706.7,3.69447]
[1739508390100,0.8162,2707.2,2706.8,3.69439]
[1739508391231,0.8162,2707.2,2706.8,3.69431]
[1739508393299,0.268,2707.3,2707.0,3.69409]
[1739508393502,0.7715,2707.4,2707.0,3.69409]
[1739508393702,0.7715,2707.4,2707.0,3.69404]
[1739508394189,0.7672,2707.6,2707.1,3.69396]
[1739508394391,1.0342,2707.6,2707.1,3.69396]
[1739508394721,0.7672,2707.6,2707.1,3.69396]
[1739508394924,0.7672,2707.6,2707.2,3.69375]
[1739508395126,0.7672,2707.6,2707.2,3.84194569]
[1739508395332,0.7672,2707.6,2707.3,3.69369]
[1739508395630,0.7672,2707.6,2707.4,0.1481454]
[1739508396256,1.92610319,2707.6,2707.4,0.1481454]
[1739508396441,0.7672,2707.6,2707.0,3.69405]
[1739508396761,0.7672,2707.6,2707.5,0.14812026]
[1739508396932,0.7672,2707.6,2707.2,3.69381]
[1739508397134,0.7672,2707.6,2707.5,0.14812026]
[1739508397345,0.7672,2707.6,2707.2,3.69381]
[1739508397553,0.7672,2707.6,2707.5,0.14812026]
[1739508397714,0.7672,2707.6,2707.2,3.69381]
[1739508397919,0.7672,2707.6,2707.5,0.14812026]
[1739508398152,0.7672,2707.6,2707.2,3.69381]
[1739508398659,0.7672,2707.6,2707.3,0.14817055]
[1739508399147,0.7672,2707.6,2707.2,3.69381]
[1739508399316,0.7672,2707.6,2707.4,0.1481454]
[1739508399517,0.7672,2707.6,2707.3,0.14817055]
[1739508399717,0.7672,2707.6,2707.5,0.14812026]
[1739508399919,0.7672,2707.6,2707.4,0.1481454]
[1739508400149,0.7672,2707.6,2707.5,0.14812026]
[1739508400566,0.7672,2707.6,2707.2,3.69381]
[1739508401049,0.7672,2707.6,2707.3,3.84188055]
[1739508402027,0.7672,2707.6,2707.4,3.69356]
[1739508402453,0.7672,2707.6,2707.5,0.14812026]
[1739508403867,0.7812,2707.9,2707.5,0.14812026]
[1739508404069,6.96e-06,2708.1,2708.0,3.69276]
[1739508404271,6.96e-06,2708.1,2708.0,4.46916]
[1739508404484,6.96e-06,2708.1,2708.0,7.46916]
[1739508404784,6.96e-06,2708.1,2708.0,7.61620598]
[1739508406131,6.96e-06,2708.1,2708.0,4.61620598]
[1739508423882,6.96e-06,2708.1,2708.0,7.61620598]
[1739508425714,6.96e-06,2708.1,2708.0,12.86620598]
[1739508427615,6.96e-06,2708.1,2708.0,13.43120598]
[1739508432538,6.96e-06,2708.1,2708.0,22.38120598]
[1739508434755,6.96e-06,2708.1,2708.0,22.18120598]
[1739508442527,6.96e-06,2708.1,2708.0,21.61620598]
[1739508442824,6.96e-06,2708.1,2708.0,6.83980598]
[1739508443117,0.83040696,2708.1,2708.0,6.83980598]
[1739508443490,6.96e-06,2708.1,2708.0,6.87672705]
[1739508443672,6.96e-06,2708.1,2708.0,6.83980598]
[1739508444521,0.83040696,2708.1,2708.0,6.83980598]
[1739508448536,0.83040696,2708.1,2708.0,0.13491888]
[1739508448884,1.15379984,2708.1,2708.0,0.13491888]
[1739508449025,0.7554,2708.0,2707.8,3.69303]
[1739508449527,0.7554,2708.0,2707.9,0.12046762]
[1739508450628,0.7554,2708.0,2707.8,3.69303]
[1739508450856,0.7554,2708.0,2707.9,0.12065845]
[1739508451259,0.7554,2708.0,2707.7,7.38614]
[1739508451575,0.7554,2708.0,2707.8,0.12068358]
[1739508451742,0.7554,2708.0,2707.9,3.69289]
[1739508452131,0.7554,2708.0,2707.9,3.81354845]
[1739508454507,6.96e-06,2708.1,2708.0,3.69276]
[1739508454684,6.96e-06,2708.1,2708.0,3.72968371]
[1739508454985,6.96e-06,2708.1,2708.0,3.85046972]
[1739508455542,6.96e-06,2708.1,2708.0,3.81354601]
[1739508456204,0.80510696,2708.1,2708.0,0.12078601]
[1739508456863,1.25486166,2708.1,2707.5,3.69342]
[1739508457085,0.7796,2708.0,2707.6,3.81389569]
[1739508457286,0.7796,2708.0,2707.7,3.69317]
[1739508457685,0.7796,2708.0,2707.8,0.12064542]
[1739508459676,0.7796,2708.0,2707.6,3.69328]
[1739508459879,1.2268177,2708.0,2707.9,0.12062028]
[1739508460192,0.7796,2708.0,2707.7,3.69316]
[1739508460352,0.7796,2708.0,2707.9,0.12062028]
[1739508460552,0.7796,2708.0,2707.8,0.12064542]
[1739508460752,0.7796,2708.0,2707.9,0.12062028]
[1739508461154,0.7796,2708.0,2707.7,3.69316]
[1739508461354,0.7796,2708.0,2707.9,0.12062028]
[1739508461576,0.7796,2708.0,2707.8,0.12064542]
[1739508461783,0.7796,2708.0,2707.9,0.12062028]
[1739508462087,1.2268117,2708.0,2707.3,3.69371]
[1739508462264,0.7796,2708.0,2707.9,0.12098289]
[1739508462470,0.7796,2708.0,2707.7,3.69307]
[1739508462471,0.7796,2708.0,2707.7,7.38613]
[1739508462785,0.7796,2708.0,2707.9,0.12098289]
[1739508462987,0.7796,2708.0,2707.9,3.69289]
[1739508463190,0.7796,2708.0,2707.9,0.12098289]
[1739508463390,4.47236,2708.0,2707.9,0.12098289]
[1739508463587,0.7669,2707.9,2707.3,3.69361]
[1739508463828,0.7669,2707.9,2707.5,7.38678]
[1739508463990,0.7669,2707.9,2707.6,3.69328]
[1739508464196,0.7669,2707.9,2707.7,3.69316]
[1739508464994,0.7669,2707.9,2707.8,3.69303]
[1739508465688,6.96e-06,2708.1,2708.0,3.69276]
[1739508465857,6.96e-06,2708.1,2707.8,3.69303]
[1739508466065,6.96e-06,2708.1,2707.9,3.69289]
[1739508466374,0.8066,2708.0,2707.6,3.69322]
[1739508466921,0.8066,2708.0,2707.6,3.69321]
[1739508467262,0.8066,2708.0,2707.7,3.69309]
[1739508467461,0.8066,2708.0,2707.8,3.69301]
[1739508468859,0.8066,2708.0,2707.7,3.69309]
[1739508469385,0.8066,2708.0,2707.8,3.69302]
[1739508469886,0.8066,2708.0,2707.8,7.38586]
[1739508470197,0.8066,2708.0,2707.9,0.12113558]
[1739508470699,0.8066,2708.0,2707.9,3.81402558]
[1739508477337,6.96e-06,2708.1,2708.0,3.69276]
[1739508478012,6.96e-06,2708.1,2708.0,3.81377502]
[1739508479360,6.96e-06,2708.1,2708.0,0.12101502]
[1739508479538,0.81580696,2708.1,2708.0,0.12101502]
[1739508479731,0.81580696,2708.1,2707.6,3.69329]
[1739508479932,0.4508407,2708.0,2707.6,3.69329]
[1739508480146,0.81580696,2708.1,2707.6,3.69329]
[1739508481772,0.81580696,2708.1,2707.5,3.69339]
[1739508481975,0.8115,2708.0,2707.5,3.69339]
[1739508482274,0.8115,2708.0,2707.6,3.69328]
[1739508483276,0.8115,2708.0,2707.7,3.69308]
[1739508483785,0.8115,2708.0,2707.1,0.73041561]
[1739508483991,3.2261,2705.5,2703.1,3.8523103]
[1739508484146,3.16852188,2704.3,2703.2,0.8003]
[1739508484347,0.405,2704.9,2703.2,0.8003]
[1739508484564,0.405,2704.9,2703.8,0.04440609]
[1739508484884,4.96427176,2705.4,2704.0,3.6981]
[1739508484885,1.0694,2705.1,2704.0,3.6981]
[1739508485186,0.7634,2705.1,2704.1,0.08755251]
[1739508485385,3.69691,2705.0,2704.1,0.12452508]
[1739508485593,3.69691,2705.0,2703.9,0.7502]
[1739508485746,3.69703,2704.9,2704.2,0.08752731]
[1739508485942,3.69703,2704.9,2703.9,0.7502]
[1739508485943,3.69762,2704.5,2704.0,0.08757772]
[1739508486266,3.69762,2704.5,2703.0,3.16852188]
[1739508486267,3.69801,2704.2,2704.1,0.0844684]
[1739508486522,4.46673319,2704.2,2703.1,3.8523103]
[1739508486860,6.86662188,2704.1,2703.1,3.8523103]
[1739508487013,3.16852188,2703.8,2703.2,0.0846953]
[1739508487196,3.69911,2703.4,2703.2,0.0846953]
[1739508487404,3.69905,2703.4,2702.9,0.8003]
[1739508487620,3.69902,2703.5,2702.9,0.8003]
[1739508487962,3.69902,2703.5,2703.0,0.08474574]
[1739508488168,3.69865,2703.7,2703.0,0.08474574]
[1739508488666,6.86704188,2703.8,2703.0,0.08474574]
[1739508488937,0.56725147,2704.4,2703.7,5.0334]
[1739508489152,6.86581188,2704.7,2703.7,5.0334]
[1739508489301,7.63166307,2704.7,2703.8,0.08994731]
[1739508489640,3.16852188,2704.4,2703.8,0.08994731]
[1739508490138,6.86619188,2704.4,2703.8,0.08994731]
[1739508491660,3.69767,2704.4,2703.8,0.08994731]
[1739508492215,3.69781,2704.3,2703.8,0.08994731]
[1739508494855,0.76585119,2704.7,2703.8,0.08994731]
[1739508495057,0.55351769,2704.6,2703.8,0.08994731]
[1739508495257,0.55351769,2704.6,2703.3,4.48397]
[1739508495258,3.97662571,2704.4,2703.3,0.7848]
[1739508495416,3.69822,2704.0,2703.9,0.08627412]
[1739508495617,3.69851,2703.8,2703.3,0.7848]
[1739508495869,3.69851,2703.8,2703.4,0.55]
[1739508496155,0.739673,2703.8,2703.4,0.08639382]
[1739508496373,3.69863,2703.7,2703.4,0.08639382]
[1739508496537,0.739673,2703.8,2703.1,3.69944]
[1739508496718,0.739673,2703.8,2703.5,0.08643849]
[1739508497055,0.739673,2703.8,2703.2,3.69929]
[1739508497256,0.739673,2703.8,2703.6,0.08641328]
[1739508497458,4.438193,2703.8,2703.7,0.08638807]
[1739508497752,4.438193,2703.8,2703.1,3.0]
[1739508498164,0.739673,2703.8,2703.2,0.08651414]
[1739508498763,0.739673,2703.8,2703.2,6.78581414]
[1739508499324,0.739673,2703.8,2703.3,3.73613864]
[1739508499545,4.49444,2704.0,2703.3,3.69915]
[1739508499757,9.81444,2704.0,2703.4,0.08646371]
[1739508501942,6.1162,2704.0,2703.4,0.08646371]
[1739508502136,3.69836,2703.9,2703.4,0.08646371]
[1739508502860,6.1162,2704.0,2703.4,0.08646371]
[1739508503064,0.98143,2703.9,2703.4,3.78549371]
[1739508505070,0.98143,2703.9,2703.6,3.69876]
[1739508505300,0.98143,2703.9,2703.4,3.78541371]
[1739508505560,0.98143,2703.9,2703.4,7.39788]
[1739508505765,0.98143,2703.9,2703.5,3.78528849]
[1739508506063,0.98143,2703.9,2703.5,0.08643849]
[1739508507332,0.999966,2703.8,2703.5,0.08643849]
[1739508507831,0.999966,2703.8,2703.4,3.69897]
[1739508508032,0.999966,2703.8,2703.6,0.08660389]
[1739508508360,0.999966,2703.8,2703.7,0.08657868]
[1739508508751,0.999966,2703.8,2703.4,3.69894]
[1739508508954,5.32,2704.0,2703.7,0.08657868]
[1739508509138,5.32,2704.0,2703.1,3.55]
[1739508509463,5.32,2704.0,2703.5,3.69881]
[1739508509845,5.32,2704.0,2703.6,0.08660389]
[1739508510423,0.33891872,2703.9,2703.6,0.08660389]
[1739508511065,0.33891872,2703.9,2703.6,3.78530389]
[1739508511840,0.33891872,2703.8,2703.6,3.78528389]
[1739508512047,0.33891872,2703.8,2703.7,3.69863]
[1739508512248,0.33891872,2703.8,2703.7,3.78520868]
[1739508512644,0.33891872,2703.8,2703.7,0.08657868]
[1739508512878,1.72585935,2703.8,2703.7,0.08657868]
[1739508513035,5.42434935,2703.8,2703.7,0.08657868]
[1739508513235,3.69903,2703.5,2702.8,3.8482251]
[1739508513546,3.69903,2703.5,2702.9,0.08379409]
[1739508513752,0.27366569,2703.4,2702.9,3.78351409]
[1739508513951,0.27366569,2703.4,2702.9,0.08379409]
[1739508514149,4.48028,2703.3,2702.9,0.08379409]
[1739508514538,3.69947,2703.1,2702.9,0.08379409]
[1739508515081,4.78018,2703.3,2702.9,0.08379409]
[1739508515281,3.69936,2703.2,2702.9,0.08379409]
[1739508515602,3.69956,2703.1,2702.8,0.1484751]
[1739508515759,0.50542257,2703.1,2702.8,0.1484751]
[1739508515962,0.27366569,2703.2,2702.9,0.08379409]
[1739508516500,1.081,2703.3,2702.9,0.08379409]
[1739508516637,4.48019,2703.3,2702.9,0.08379409]
[1739508516990,4.77919,2703.3,2702.9,0.08379409]
[1739508517587,1.08,2703.3,2702.9,0.08379409]
[1739508517786,3.69955,2703.1,2702.9,0.08379409]
[1739508518283,3.69959,2703.0,2702.8,0.1484751]
[1739508518641,3.69959,2703.0,2702.9,0.08379409]
[1739508518848,3.70709,2703.0,2702.8,0.1484751]
[1739508519047,11.42415928,2702.9,2702.8,0.1484751]
[1739508520782,7.72443928,2702.9,2702.8,0.1484751]
[1739508520984,0.78,2703.2,2702.8,0.1484751]
[1739508521183,0.78,2703.2,2702.8,3.8483051]
[1739508521389,0.78,2703.2,2702.9,0.08477779]
[1739508521976,4.09634957,2703.4,2702.9,0.08477779]
[1739508523292,0.39726957,2703.4,2702.9,0.08477779]
[1739508523495,0.7672,2703.5,2703.0,3.69947]
[1739508523796,1.069,2703.7,2703.1,3.78404734]
[1739508524316,4.76772,2703.7,2703.1,0.08472734]
[1739508524965,3.69887,2703.6,2703.1,0.08472734]
[1739508525223,4.54551,2703.6,2703.1,0.08472734]
[1739508528276,0.84664,2703.6,2703.1,0.08472734]
[1739508528471,0.84664,2703.6,2703.2,3.69922]
[1739508528806,1.068,2703.7,2703.3,0.08526062]
[1739508528973,0.772,2703.7,2703.3,0.08526062]
[1739508529170,0.772,2703.7,2703.2,3.69922]
[1739508529407,0.772,2703.7,2703.4,0.0852354]
[1739508529612,6.092,2703.7,2703.3,3.78443062]
[1739508529918,7.40139,2703.7,2703.4,0.0852354]
[1739508530095,7.40139,2703.7,2703.4,3.7842654]
[1739508530994,6.62939,2703.7,2703.4,3.7842654]
[1739508531204,6.62939,2703.7,2703.4,7.4832954]
[1739508531384,6.62939,2703.7,2703.4,3.7842654]
[1739508532487,5.32,2703.7,2703.4,3.7842654]
[1739508535397,5.32,2703.8,2703.4,3.7841954]
[1739508535796,5.32,2703.8,2703.5,3.69882]
[1739508536194,5.32,2703.8,2703.6,0.08468981]
[1739508537087,5.32,2703.8,2703.2,4.49834]
[1739508537288,6.559186,2703.8,2703.4,3.69896]
[1739508537721,6.559186,2703.8,2703.5,0.08471502]
[1739508537921,6.559186,2703.8,2703.5,3.78354502]
[1739508538300,6.559186,2703.8,2703.5,0.08471502]
[1739508539233,6.559186,2703.8,2703.5,3.78358502]
[1739508539395,6.559186,2703.8,2703.5,3.69887]
[1739508539601,6.559186,2703.8,2703.6,0.08449308]
[1739508540184,6.559186,2703.8,2703.2,4.49831]
[1739508540185,10.257796,2703.8,2703.2,4.49831]
[1739508540430,10.257796,2703.8,2703.7,0.08446787]
[1739508540730,6.559186,2703.8,2703.3,3.69915]
[1739508540884,6.559186,2703.8,2703.4,3.69903]
[1739508541290,6.559186,2703.8,2703.5,0.08451829]
[1739508541704,6.559186,2703.8,2703.5,3.78337829]
[1739508541925,5.32,2703.8,2703.5,3.78337829]
[1739508542286,5.32,2703.8,2703.6,3.69866]
[1739508542492,5.32,2703.8,2703.7,0.08446787]
[1739508543075,5.3932,2704.0,2703.7,3.78309787]
[1739508543901,5.3932,2704.0,2703.7,0.08446787]
[1739508544143,1.131538,2703.9,2703.4,3.69902]
[1739508544340,1.131538,2703.9,2703.8,0.08444266]
[1739508544548,1.131538,2703.9,2703.5,3.69889]
[1739508544749,1.131538,2703.9,2703.8,0.08444266]
[1739508545044,1.131538,2703.9,2703.4,3.69904]
[1739508545244,1.0222978,2703.8,2703.5,3.69882]